bitfinex-derivatives/quotes_BNBF0:USTF0_20250413
["timestamp","ask_amount","ask_price","bid_price","bid_amount"]
[1744520371835,0.31041262,592.82,591.93,4.355]
[1744520372038,0.31041262,592.83,591.93,4.355]
[1744520372340,1.28024234,592.82,591.93,4.355]
[1744520372540,0.31041262,592.81,591.93,4.355]
[1744520375148,0.31041262,592.83,591.93,4.355]
[1744520375346,0.31041262,592.82,591.93,4.355]
[1744520375546,0.31041262,592.83,591.93,4.355]
[1744520375747,0.31041262,592.82,591.93,4.355]
[1744520375940,0.31041262,592.83,591.93,4.355]
[1744520378150,0.31041262,592.83,591.94,0.5329933]
[1744520378349,0.31041262,592.83,591.93,2.763]
[1744520378551,0.31041262,592.83,591.93,0.762]
[1744520378750,0.33735915,592.84,591.93,0.762]
[1744520379049,0.31036745,592.83,591.93,0.762]
[1744520380852,0.31036745,592.83,591.93,1.457]
[1744520381649,0.31036745,592.83,591.93,3.159]
[1744520381952,0.33735915,592.84,591.93,3.819]
[1744520382154,0.31037792,592.83,591.94,0.53334311]
[1744520382454,0.31037792,592.83,591.95,1.31630329]
[1744520382650,0.31037792,592.83,591.95,0.783]
[1744520382853,0.31037792,592.83,591.96,0.53330206]
[1744520383053,0.31037792,592.83,591.97,0.5332961]
[1744520383252,0.31037792,592.83,591.98,0.5332961]
[1744520383453,0.31037792,592.83,591.99,0.5332961]
[1744520383654,0.31037792,592.83,591.95,0.783]
[1744520383847,0.31037792,592.83,591.96,0.53333027]
[1744520384053,0.31037792,592.83,591.97,0.53333027]
[1744520384253,0.31037792,592.83,591.98,0.53333027]
[1744520384450,0.31037792,592.83,591.99,0.53333027]
[1744520384651,0.31037792,592.83,592.0,0.53333027]
[1744520384951,0.31037792,592.83,592.01,0.53333027]
[1744520385153,0.31037792,592.83,592.02,0.53333027]
[1744520385357,0.31035211,592.82,591.95,0.783]
[1744520385554,0.33735915,592.84,591.95,0.783]
[1744520385555,0.31035211,592.83,592.02,0.651]
[1744520385859,0.31035211,592.82,592.02,0.651]
[1744520386059,0.31035211,592.83,592.02,0.651]
[1744520386254,0.31035211,592.83,592.03,0.53348084]
[1744520386453,0.31035211,592.83,592.02,0.651]
[1744520386658,0.31035211,592.83,592.03,0.53348024]
[1744520386856,0.33735915,592.84,592.02,0.651]
[1744520387055,0.31034433,592.83,592.03,0.5334802]
[1744520387358,0.31034433,592.83,592.04,0.53354275]
[1744520387654,0.31034433,592.83,592.02,0.651]
[1744520387858,0.31034433,592.83,592.03,0.53347135]
[1744520388053,0.31034433,592.83,592.04,0.53347135]
[1744520388358,0.31034433,592.83,592.02,0.651]
[1744520388557,0.33735915,592.84,592.03,0.53340958]
[1744520388861,0.310343,592.83,592.02,0.651]
[1744520390261,0.33735915,592.84,592.02,0.651]
[1744520390457,0.31034675,592.83,592.02,0.651]
[1744520391760,0.33735915,592.84,592.02,0.651]
[1744520391961,0.31033581,592.83,592.02,0.651]
[1744520392162,0.31033581,592.83,592.03,0.53334296]
[1744520392362,0.31033581,592.83,592.04,0.53334296]
[1744520392562,0.31033581,592.83,592.05,0.53334296]
[1744520392763,0.31033581,592.83,592.06,0.53326163]
[1744520393063,0.31033581,592.83,592.07,0.53326163]
[1744520393257,0.31033581,592.83,592.08,0.53326163]
[1744520393463,0.31033581,592.83,592.09,0.53326163]
[1744520393758,0.31033581,592.83,592.02,0.651]
[1744520393961,0.31033581,592.83,592.03,0.53312123]
[1744520394159,0.31033581,592.83,592.04,0.53312123]
[1744520394364,0.31033581,592.83,592.05,0.53312123]
[1744520394565,0.31033581,592.83,592.06,0.53312123]
[1744520394860,0.31033581,592.83,592.07,0.53312123]
[1744520395066,0.33735915,592.84,592.02,0.651]
[1744520395265,0.31030133,592.82,592.03,0.53299386]
[1744520395462,0.31030133,592.81,592.04,0.53299386]
[1744520395665,0.31030133,592.81,592.05,0.53299386]
[1744520395864,0.31030133,592.8,592.06,0.53299386]
[1744520396062,0.31030133,592.83,592.07,0.53299386]
[1744520396367,0.31030133,592.83,592.08,0.53299386]
[1744520396669,0.33735915,592.84,592.02,0.651]
[1744520396862,0.31029317,592.83,592.03,0.53278174]
[1744520397166,0.31029317,592.83,592.04,0.53278174]
[1744520397369,0.31029317,592.83,592.05,0.53278174]
[1744520397567,0.31029317,592.83,592.06,0.53278174]
[1744520397867,0.31029317,592.83,592.07,0.53278174]
[1744520398068,0.31029317,592.83,592.02,0.651]
[1744520398368,0.31029317,592.83,592.08,0.875]
[1744520402571,0.31029317,592.83,592.09,1.29846321]
[1744520402769,0.31029317,592.83,592.09,0.766]
[1744520403870,0.31029317,592.83,592.1,0.5324081]
[1744520404169,0.31029317,592.83,592.11,0.5324081]
[1744520404372,0.31029317,593.24,592.12,0.5324081]
[1744520404570,0.64743053,593.23,592.13,0.5324081]
[1744520404868,0.31029317,593.22,592.14,0.5324081]
[1744520405071,0.31029317,593.21,592.15,0.53228459]
[1744520405271,0.31029317,593.2,592.09,0.766]
[1744520405471,0.31029317,593.19,592.1,0.53221486]
[1744520405669,0.31029317,593.22,592.11,0.53221486]
[1744520405867,0.31029317,593.21,592.12,0.53221486]
[1744520406069,0.31029317,593.21,592.13,0.53221486]
[1744520406270,0.31029317,593.2,592.14,0.53221486]
[1744520406466,0.31029317,593.19,592.15,0.53221486]
[1744520406670,0.31029317,593.21,592.09,0.766]
[1744520406868,0.31029317,593.2,592.1,0.53213212]
[1744520407073,0.31029317,593.19,592.11,0.53213212]
[1744520407372,0.31029317,593.18,592.11,0.53213212]
[1744520407674,0.33714304,593.22,592.11,0.53213212]
[1744520407973,0.31024778,593.21,592.11,0.53213212]
[1744520408173,0.31024778,593.2,592.11,0.53213212]
[1744520408372,0.31024778,593.19,592.11,0.53213212]
[1744520408574,0.31024778,593.18,592.11,0.53213212]
[1744520408868,0.31024778,593.17,592.11,0.53213212]
[1744520409073,0.31024778,593.21,592.11,0.53213212]
[1744520409270,0.31024778,593.2,592.11,0.53213212]
[1744520409474,0.31024778,593.19,592.12,0.955]
[1744520409675,0.31024778,593.18,592.13,0.53213212]
[1744520409873,0.31024778,593.2,592.12,0.955]
[1744520410072,0.31024778,593.19,592.13,0.53203285]
[1744520410273,0.31024778,593.18,592.12,0.955]
[1744520410472,0.31024778,593.2,592.13,0.5320341]
[1744520410672,0.31024778,593.2,592.12,0.955]
[1744520410673,0.31024778,593.19,592.12,0.955]
[1744520410873,0.33714873,593.21,592.13,0.53203542]
[1744520411073,0.31025634,593.2,592.12,0.955]
[1744520411374,0.31025634,593.19,592.12,0.955]
[1744520411569,0.31025634,593.18,592.12,0.955]
[1744520411774,0.31025634,593.17,592.12,0.955]
[1744520411978,0.31025634,593.2,592.12,0.955]
[1744520412170,0.64741075,593.2,592.12,0.955]
[1744520412373,0.31025634,593.19,592.12,0.955]
[1744520412573,0.33715441,593.2,592.12,0.955]
[1744520412774,0.31027947,593.19,592.12,0.955]
[1744520415075,0.33716578,593.18,592.12,0.955]
[1744520415277,0.31027947,593.17,592.12,0.955]
[1744520415776,0.31027947,593.17,592.13,0.5319049]
[1744520416076,0.31027947,593.17,592.12,0.955]
[1744520421177,0.31027947,593.17,592.13,0.53184107]
[1744520421382,0.31027947,593.17,592.12,0.955]
[1744520422184,0.31027947,593.17,592.13,0.53186472]
[1744520422383,0.31027947,593.17,592.12,0.955]
[1744520425583,0.31027947,593.16,592.12,0.955]
[1744520425878,0.31027947,593.15,592.12,0.955]
[1744520426083,0.31027947,593.14,592.12,0.955]
[1744520426283,0.31027947,593.13,592.12,0.955]
[1744520426484,0.31027947,593.12,592.12,0.955]
[1744520426684,0.31027947,593.17,592.12,0.955]
[1744520426885,0.31027947,593.16,592.12,0.955]
[1744520427085,0.31027947,593.17,592.12,0.955]
[1744520427886,0.31027947,593.17,592.13,0.5320548]
[1744520428087,1.28024234,593.15,592.12,0.955]
[1744520428288,0.31027947,593.14,592.13,0.53204683]
[1744520428586,0.31027947,593.14,592.14,0.53204683]
[1744520428885,0.31027947,593.14,592.12,0.955]
[1744520429283,0.31027947,593.14,592.13,0.53210655]
[1744520429483,0.31027947,593.14,592.14,0.53210655]
[1744520429684,0.31027947,593.14,592.12,0.955]
[1744520429883,0.31027947,593.14,592.13,0.53217327]
[1744520430083,0.31027947,593.14,592.14,0.53217327]
[1744520430288,0.31027947,593.14,592.15,0.5322476]
[1744520430588,0.33716578,593.18,592.12,0.955]
[1744520430890,0.31024796,593.17,592.13,0.53224291]
[1744520431188,0.31024796,593.17,592.14,0.53224291]
[1744520431384,0.31024796,593.17,592.15,0.53224291]
[1744520431690,0.31024796,593.17,592.16,0.53224291]
[1744520431989,0.31024814,593.16,592.12,0.955]
[1744520432185,0.31024814,593.15,592.13,0.53231693]
[1744520432385,0.31024814,593.14,592.14,0.53231693]
[1744520432590,0.31024814,593.17,592.15,0.53231693]
[1744520432790,0.31024814,593.16,592.16,0.53231693]
[1744520432991,0.31024814,593.15,592.17,0.53231693]
[1744520433191,0.31024814,593.17,592.18,0.53231693]
[1744520433486,0.31024814,593.16,592.19,0.53231693]
[1744520433691,0.31024814,593.15,592.12,0.955]
[1744520433892,1.28024234,593.13,592.13,0.53244364]
[1744520434086,0.31024814,593.12,592.14,0.53244364]
[1744520434293,0.31024814,593.12,592.15,0.53244364]
[1744520434490,0.31024814,593.12,592.16,0.53244364]
[1744520434693,0.31024814,593.12,592.17,0.53244364]
[1744520434889,0.31024814,593.12,592.18,0.53244364]
[1744520435090,0.31024814,593.12,592.19,0.53244364]
[1744520435290,0.31024814,593.12,592.2,0.53263112]
[1744520435491,0.31024814,593.12,592.12,0.955]
[1744520435687,0.31024814,593.12,592.13,0.53262535]
[1744520435886,0.31024814,593.12,592.14,0.53262535]
[1744520436187,0.31024814,593.12,592.15,0.53262535]
[1744520436390,0.31024814,593.12,592.16,0.53262535]
[1744520436587,0.31024814,593.12,592.17,0.53262535]
[1744520436793,0.31024814,593.12,592.18,0.53262535]
[1744520436992,0.31024814,593.17,592.19,0.53262535]
[1744520437193,0.33716578,593.18,592.2,0.53262535]
[1744520437391,0.31022781,593.17,592.21,0.53262535]
[1744520437587,0.31022781,593.17,592.06,0.738]
[1744520437888,0.31022781,593.17,592.07,0.53283877]
[1744520438087,0.31022781,593.17,592.08,0.53283877]
[1744520438287,0.31022781,593.17,592.06,0.738]
[1744520438288,0.31022781,593.17,592.09,0.53283877]
[1744520438493,0.31022781,593.17,592.1,0.53283877]
[1744520438693,0.31022781,593.17,592.11,0.53283877]
[1744520438995,0.31022968,593.16,592.12,0.53283877]
[1744520439188,0.31022968,593.17,592.12,0.53283877]
[1744520439390,0.31022968,593.16,592.12,0.53283877]
[1744520439592,0.31022968,593.17,592.13,0.53292947]
[1744520439792,0.31022968,593.16,592.14,0.53292947]
[1744520439993,0.31022968,593.17,592.15,0.53292947]
[1744520440191,0.31022968,593.17,592.16,0.53292947]
[1744520440389,0.31022968,593.17,592.17,0.53292947]
[1744520440595,0.31022968,593.17,592.18,0.53292947]
[1744520440895,0.31022968,593.17,592.19,0.53292947]
[1744520441091,0.31022968,593.17,592.2,0.53292947]
[1744520441290,0.31022968,593.17,592.21,0.53292947]
[1744520441495,0.31022968,593.17,592.22,0.53292947]
[1744520441696,0.31022968,593.17,592.23,0.53292947]
[1744520441995,0.31022968,593.17,592.24,0.53292947]
[1744520442295,0.31022968,593.17,592.25,0.53292947]
[1744520442695,0.31022968,593.17,592.24,0.798]
[1744520443095,0.64740114,593.17,592.24,0.798]
[1744520443296,0.31022968,593.16,592.24,0.798]
[1744520443592,0.31022968,593.15,592.24,0.798]
[1744520443795,0.31022968,593.16,592.24,0.798]
[1744520443989,0.31022968,593.15,592.24,0.798]
[1744520444190,0.31022968,593.14,592.24,0.798]
[1744520444397,0.3371942,593.13,592.24,0.798]
[1744520444592,0.31022968,593.12,592.24,0.798]
[1744520444792,0.64743525,593.11,592.24,0.798]
[1744520444995,0.31022968,593.1,592.24,0.798]
[1744520445194,0.33720557,593.11,592.24,0.798]
[1744520445397,0.31027515,593.1,592.24,0.798]
[1744520446198,0.33721694,593.09,592.24,0.798]
[1744520446389,0.31027515,593.08,592.24,0.798]
[1744520446798,0.33721694,593.09,592.24,0.798]
[1744520446998,0.31028448,593.08,592.24,0.798]
[1744520448401,0.33721694,593.09,592.24,0.798]
[1744520448601,0.31027855,593.08,592.24,0.798]
[1744520452703,0.31027855,593.08,592.24,1.641]
[1744520453202,0.33721694,593.09,592.24,1.641]
[1744520453403,0.31028,593.08,592.24,1.641]
[1744520454404,0.31028,593.08,592.25,0.623]
[1744520454810,0.33721694,593.09,592.25,0.623]
[1744520455107,0.31027857,593.08,592.25,0.623]
[1744520462114,0.31027857,593.08,592.26,0.53423588]
[1744520462312,0.33721694,593.09,592.27,0.53423588]
[1744520462510,0.31023778,593.08,592.28,0.53423588]
[1744520462710,0.31023778,593.08,592.25,0.623]
[1744520462912,0.31023778,593.08,592.26,0.53424263]
[1744520463207,0.31023778,593.08,592.27,1.16724263]
[1744520463412,0.31023778,593.08,592.27,0.633]
[1744520463911,0.33721694,593.09,592.27,0.633]
[1744520464117,0.31023906,593.08,592.28,0.53427832]
[1744520464311,0.31023906,593.08,592.27,0.633]
[1744520467117,0.33721694,593.09,592.27,0.633]
[1744520467310,0.31024041,593.08,592.27,0.633]
[1744520468718,0.33721694,593.09,592.27,0.633]
[1744520468914,0.310241,593.08,592.27,0.633]
[1744520470319,0.33721694,593.09,592.27,0.633]
[1744520470512,0.31023591,593.08,592.27,0.633]
[1744520472020,0.33721694,593.09,592.27,0.633]
[1744520472220,0.31024322,593.08,592.27,0.633]
[1744520473323,0.31024322,593.08,592.27,1.372]
[1744520473516,0.33721694,593.09,592.27,1.372]
[1744520473819,0.31024373,593.08,592.27,1.372]
[1744520474623,0.31024373,593.08,592.27,1.933]
[1744520475220,0.33721694,593.09,592.27,1.933]
[1744520475424,0.31024536,593.08,592.27,1.933]
[1744520476726,0.33721694,593.09,592.27,1.933]
[1744520476927,0.31025335,593.08,592.27,1.933]
[1744520478422,0.33721694,593.09,592.27,1.933]
[1744520478626,0.31025477,593.08,592.27,1.933]
[1744520479123,1.61745928,593.09,592.27,1.933]
[1744520479327,0.3102463,593.08,592.27,1.933]
[1744520479822,0.3102463,593.08,592.28,0.53429476]
[1744520480126,1.61745928,593.09,592.27,1.933]
[1744520480325,0.31024342,593.08,592.27,1.933]
[1744520482128,0.31024342,593.08,592.27,2.658]
[1744520484931,1.61745928,593.09,592.27,2.658]
[1744520485130,0.31024467,593.08,592.27,2.658]
[1744520488132,0.33721694,593.09,592.27,2.658]
[1744520488330,0.31024693,593.08,592.27,2.658]
[1744520489132,0.31024693,593.08,592.28,0.53430677]
[1744520489331,0.31024693,593.08,592.27,2.658]
[1744520489533,0.31024693,593.08,592.27,2.025]
[1744520489832,0.31024693,593.08,592.28,0.53429235]
[1744520490033,0.31024693,593.08,592.27,2.025]
[1744520490329,0.31024693,593.08,592.28,0.53429235]
[1744520490532,0.31024693,593.08,592.27,2.025]
[1744520490833,0.31024693,593.08,592.28,0.534291]
[1744520491033,0.31024693,593.08,592.27,2.025]
[1744520491334,0.31024693,593.08,592.28,0.53429589]
[1744520491533,0.31024693,593.08,592.27,2.025]
[1744520491732,0.31024693,593.08,592.28,0.53429562]
[1744520491929,0.31024693,593.08,592.27,2.867]
[1744520492130,0.31024693,593.08,592.28,0.53429835]
[1744520492329,0.31024693,593.08,592.27,2.867]
[1744520492531,0.31024693,593.08,592.28,0.53429151]
[1744520492733,0.31024693,593.08,592.27,2.867]
[1744520493032,0.31024693,593.08,592.28,0.53429107]
[1744520493232,0.31024693,593.08,592.27,2.867]
[1744520494736,0.31025159,593.07,592.27,2.867]
[1744520494932,0.31025159,593.08,592.27,2.867]
[1744520495131,0.31025159,593.07,592.27,2.867]
[1744520495434,0.31025159,593.06,592.27,2.867]
[1744520495629,0.31025159,593.08,592.27,2.867]
[1744520496233,0.33721694,593.09,592.27,2.867]
[1744520496433,0.31024893,593.08,592.27,2.867]
[1744520498938,0.33721694,593.09,592.27,2.867]
[1744520499138,0.31024601,593.08,592.27,2.867]
[1744520501041,0.33721694,593.09,592.27,2.867]
[1744520501243,0.31024846,593.08,592.27,2.867]
[1744520501839,0.31024846,593.08,592.28,0.53446949]
[1744520502044,0.31024846,593.08,592.27,2.867]
[1744520502244,0.31024846,593.08,592.28,0.53458178]
[1744520502544,0.31024846,593.08,592.27,1.567]
[1744520502742,0.31024541,593.07,592.28,0.53458198]
[1744520502942,0.31024541,593.08,592.27,1.567]
[1744520503139,0.31024541,593.07,592.28,0.53458143]
[1744520503343,0.31024541,593.08,592.27,1.567]
[1744520503545,0.31024541,593.07,592.28,0.53458063]
[1744520503739,1.61745928,593.09,592.27,1.567]
[1744520503740,0.31024541,593.06,592.27,1.567]
[1744520503939,0.31024541,593.08,592.28,0.53458065]
[1744520504237,0.31024541,593.08,592.27,1.567]
[1744520504442,1.28024234,593.04,592.27,1.567]
[1744520504636,0.31024541,593.03,592.27,1.567]
[1744520504839,0.31024541,593.03,592.28,0.53457966]
[1744520505044,0.31024541,593.03,592.27,1.567]
[1744520505645,0.31024541,593.03,592.28,0.53460337]
[1744520505842,0.31024541,593.03,592.27,2.414]
[1744520506143,0.31024541,593.03,592.27,3.168]
[1744520506342,0.31024541,593.03,592.28,0.53465387]
[1744520506544,0.31024541,593.03,592.27,3.168]
[1744520506741,0.31024541,593.03,592.28,0.53465099]
[1744520506949,0.31024541,593.03,592.27,3.168]
[1744520507148,0.31024541,593.03,592.28,0.53465353]
[1744520507347,0.31024541,593.03,592.27,2.326]
[1744520507547,0.31024587,593.02,592.28,0.53470757]
[1744520507744,0.31024587,593.08,592.27,2.326]
[1744520507947,0.31024587,593.07,592.28,0.5347073]
[1744520508243,0.31024587,593.06,592.27,2.326]
[1744520508448,0.31024587,593.08,592.28,0.53473808]
[1744520508643,0.31024587,593.07,592.27,2.326]
[1744520508846,0.31024587,593.08,592.28,0.53473865]
[1744520509047,0.33721694,593.09,592.27,2.326]
[1744520509350,0.31024649,593.08,592.28,1.42073797]
[1744520509549,0.31024649,593.08,592.28,0.886]
[1744520510048,0.31024649,593.08,592.29,0.53477644]
[1744520510248,0.31024649,593.08,592.28,0.886]
[1744520510645,0.33721694,593.09,592.28,0.886]
[1744520510849,0.31024815,593.08,592.29,0.53483701]
[1744520511049,0.31024815,593.08,592.28,0.886]
[1744520511250,0.31024815,593.08,592.29,0.53483769]
[1744520511548,0.31024815,593.08,592.3,0.53483769]
[1744520511748,0.31024815,593.08,592.31,0.53492326]
[1744520511948,0.31024815,593.08,592.28,0.886]
[1744520512145,0.31024815,593.08,592.29,0.53492326]
[1744520512348,0.31024815,593.08,592.3,0.53492326]
[1744520512545,0.31024815,593.08,592.28,1.475]
[1744520512750,0.31024815,593.08,592.29,0.53492708]
[1744520512943,0.31024815,593.08,592.3,0.53492708]
[1744520513243,0.31024815,593.08,592.28,1.475]
[1744520513447,0.31024815,593.08,592.29,0.53492994]
[1744520513645,0.31024815,593.08,592.3,0.53492994]
[1744520513845,0.31024815,593.08,592.28,1.475]
[1744520513846,0.33721694,593.09,592.28,1.475]
[1744520514146,0.31024456,593.08,592.29,0.5349298]
[1744520514445,0.31024456,593.08,592.3,0.5349298]
[1744520514645,0.31024456,593.08,592.28,1.475]
[1744520514846,0.31024456,593.08,592.29,0.53493271]
[1744520515149,0.31024456,593.08,592.3,0.5349329]
[1744520515347,0.31024456,593.08,592.28,1.475]
[1744520515549,0.31024514,593.07,592.29,0.53493603]
[1744520515846,0.31024514,593.08,592.3,0.53493603]
[1744520516051,0.31024514,593.07,592.28,1.475]
[1744520516251,0.31024514,593.08,592.29,0.53493582]
[1744520516451,0.31024514,593.07,592.3,0.53493582]
[1744520516650,0.31024514,593.08,592.28,1.475]
[1744520516845,0.31024514,593.08,592.29,0.53500145]
[1744520517050,0.3102445,593.07,592.3,0.53500145]
[1744520517250,0.3102445,593.08,592.28,1.475]
[1744520517449,0.3102445,593.07,592.29,0.5350921]
[1744520517650,0.3102445,593.08,592.28,1.475]
[1744520518653,0.3102445,593.08,592.28,1.46524848]
[1744520520256,0.31028446,593.07,592.28,1.46524848]
[1744520520456,0.31028446,593.08,592.28,1.46524848]
[1744520520658,0.31028446,593.07,592.28,1.46524848]
[1744520520859,0.31028446,593.08,592.28,2.13924848]
[1744520521153,1.28024234,593.06,592.28,2.13924848]
[1744520521358,0.31028446,593.05,592.28,2.13924848]
[1744520521557,0.31028446,593.05,592.28,1.263]
[1744520522858,1.28024234,593.06,592.28,1.263]
[1744520523060,0.31030411,593.05,592.28,1.263]
[1744520524154,0.31030411,593.04,592.28,1.263]
[1744520524458,0.33721694,593.09,592.28,1.263]
[1744520524659,0.31033054,593.08,592.28,1.263]
[1744520525661,0.31033054,593.08,592.28,1.968]
[1744520526357,0.31033054,593.07,592.28,1.968]
[1744520526558,0.31033054,593.06,592.28,1.968]
[1744520526759,0.31033054,593.05,592.28,1.968]
[1744520526969,0.31033054,593.04,592.28,1.968]
[1744520527265,0.31033054,593.03,592.28,1.968]
[1744520527462,0.31033054,593.02,592.28,1.968]
[1744520527662,0.31033054,593.08,592.28,1.968]
[1744520527867,0.64755886,593.07,592.28,2.699]
[1744520528067,0.64756454,593.06,592.28,2.699]
[1744520528263,0.64757023,593.05,592.28,2.699]
[1744520528466,0.31033054,593.04,592.28,2.699]
[1744520528768,0.31033054,593.03,592.28,2.699]
[1744520529068,0.64758729,593.02,592.28,2.699]
[1744520529368,0.64759298,593.01,592.28,2.699]
[1744520529667,0.64759866,593.0,592.28,2.699]
[1744520529868,0.64760435,592.99,592.28,2.699]
[1744520530176,0.64761004,592.98,592.28,2.699]
[1744520530473,0.64761573,592.97,592.28,2.699]
[1744520530673,0.33729087,592.96,592.28,2.699]
[1744520530873,0.31037636,592.95,592.28,2.699]
[1744520531071,0.33730225,592.94,592.28,2.699]
[1744520531272,0.31037636,592.93,592.28,2.699]
[1744520531569,0.33731363,592.92,592.28,2.699]
[1744520531773,0.31037636,592.91,592.28,2.699]
[1744520531974,0.64770137,592.9,592.28,2.699]
[1744520532174,0.64770706,592.89,592.28,2.699]
[1744520532367,0.31037636,592.88,592.28,2.699]
[1744520532571,0.31037636,592.87,592.28,2.699]
[1744520532771,0.31037636,592.86,592.28,2.699]
[1744520532968,0.31037636,592.88,592.28,2.699]
[1744520533169,0.31037636,592.87,592.28,2.699]
[1744520533377,0.31037636,592.86,592.28,2.699]
[1744520533674,0.31037636,592.85,592.28,2.699]
[1744520533970,0.31038938,592.84,592.28,2.699]
[1744520535574,0.64777559,592.83,592.28,2.699]
[1744520535774,0.64778128,592.82,592.28,2.699]
[1744520536072,0.31041075,592.81,592.28,2.699]
[1744520536771,0.33738191,592.8,592.28,2.699]
[1744520536974,0.31041075,592.79,592.28,2.699]
[1744520537173,0.64779835,592.79,592.28,2.699]
[1744520537370,0.31041075,592.78,592.28,2.699]
[1744520538679,0.31035291,592.77,592.28,2.699]
[1744520538877,0.31035291,592.78,592.28,2.699]
[1744520540883,0.31035291,592.78,592.28,3.502]
[1744520544688,0.63118493,592.79,592.28,3.502]
[1744520544882,0.3373876,592.79,592.28,3.502]
[1744520545085,0.31031577,592.78,592.28,3.502]
[1744520545686,0.3373876,592.79,592.28,3.502]
[1744520547690,0.29375765,592.93,592.28,3.502]
[1744520547890,0.31028834,592.92,592.28,3.502]
[1744520550896,0.31028834,592.91,592.28,3.502]
[1744520551197,1.28024234,593.52,592.28,3.502]
[1744520551398,0.33698399,593.5,592.28,3.502]
[1744520551692,0.31024137,593.49,592.28,3.502]
[1744520551897,0.33700102,593.47,592.28,3.502]
[1744520552098,0.31024137,593.46,592.28,3.502]
[1744520552298,0.33701806,593.44,592.28,3.502]
[1744520552499,0.31023061,593.43,592.28,3.502]
[1744520552699,0.3370351,593.41,592.28,3.502]
[1744520552998,0.31023061,593.4,592.28,3.502]
[1744520553199,0.33705214,593.38,592.28,3.502]
[1744520553393,0.31023061,593.37,592.28,3.502]
[1744520553598,0.64729411,593.36,592.28,3.502]
[1744520553898,0.64729979,593.35,592.28,3.502]
[1744520554202,0.31023061,593.34,592.28,3.502]
[1744520554395,0.31023061,593.33,592.28,3.502]
[1744520554593,0.31023061,593.32,592.28,3.502]
[1744520554798,0.31023061,593.31,592.28,3.502]
[1744520555099,0.31023061,593.3,592.28,3.502]
[1744520555301,0.31023061,593.29,592.28,3.502]
[1744520555496,0.33707486,593.34,592.28,3.502]
[1744520555497,0.64733956,593.28,592.28,3.502]
[1744520555696,0.64734524,593.27,592.28,3.502]
[1744520555895,0.64735092,593.26,592.28,3.502]
[1744520556094,0.64735661,593.25,592.28,3.502]
[1744520556297,0.64736229,593.24,592.28,3.502]
[1744520556494,0.64736797,593.23,592.28,3.502]
[1744520556795,0.64737365,593.22,592.28,3.502]
[1744520557101,0.31023061,593.21,592.28,3.502]
[1744520557298,0.33715441,593.2,592.28,3.502]
[1744520557802,0.31022917,593.19,592.28,3.502]
[1744520558102,0.64738927,593.19,592.28,3.502]
[1744520558303,0.31022917,593.18,592.28,3.502]
[1744520559204,0.3371601,593.19,592.28,3.502]
[1744520559398,0.31019674,593.18,592.28,3.502]
[1744520560102,0.29366593,593.17,592.28,3.502]
[1744520560299,0.31019674,593.16,592.28,3.502]
[1744520565606,0.29366593,593.17,592.28,3.502]
[1744520565806,0.31021325,593.16,592.28,3.502]
[1744520566107,0.60388166,593.15,592.28,3.502]
[1744520566306,0.31021325,593.14,592.28,3.502]
[1744520567204,0.31022694,593.13,592.28,3.502]
[1744520567506,0.31022694,593.12,592.28,3.502]
[1744520567707,0.31022694,593.14,592.28,3.502]
[1744520567905,0.31022694,593.11,592.28,3.502]
[1744520568107,0.31022694,593.1,592.28,3.502]
[1744520568411,0.31022694,593.09,592.28,3.502]
[1744520568607,0.31022694,593.14,592.28,3.502]
[1744520568807,0.64742114,593.13,592.28,3.502]
[1744520569108,0.31022694,593.12,592.28,3.502]
[1744520570009,0.29370806,593.11,592.28,3.502]
[1744520570407,0.31022694,593.1,592.28,3.502]
[1744520571908,0.3371942,593.13,592.28,3.502]
[1744520572103,0.29371054,593.09,592.28,3.502]
[1744520572303,0.31024655,593.08,592.28,3.502]
[1744520573511,0.29371054,593.09,592.28,3.502]
[1744520573709,0.31025196,593.08,592.28,3.502]
[1744520574910,0.31025196,593.07,592.28,3.502]
[1744520575111,0.29371302,593.07,592.28,3.502]
[1744520575311,0.31025352,593.06,592.28,3.502]
[1744520578012,0.2937155,593.05,592.28,3.502]
[1744520578411,0.31025352,593.04,592.28,3.502]
[1744520580907,0.31025352,593.12,592.28,3.502]